Cogmind - Beta 13 @@@ ROGUE MODE // 2024.04.10 @ 23:20:20 Player: Stavbearer Result: Destroyed by WJ-N1R(R) with Subdweller Machine Gun Performance ------------- Evolutions (0) 0 Regions Visited (3) 600 Robots Destroyed (9) 45 Value Destroyed (146) 146 Prototype IDs (0) 0 Alien Tech Used (0) 0 Bonus (0) 0 TOTAL SCORE: 791 Bonus ------- None Cogmind --------- Core Integrity 0/250 Matter 300/300 Energy 200/200 System Corruption 0% Temperature Cool (0) Movement Core (150) Ox2 Location -10/Subcaves Parts ------- > --- POWER (1) -------- Subdweller Power Source > --- PROPULSION (2) --- (None) > --- UTILITY (2) ------ Improved Terrain Scan Processor Seismic Detector > --- WEAPON (2) ------- Katana > --- INVENTORY (5) ---- Subdweller Optics Katana Shrapnel Trap Peak State ------------ > --- POWER ------------ Ion Engine > --- PROPULSION ------- Flight Unit Flight Unit > --- UTILITY ---------- Improved Terrain Scanner Improved Terrain Scan Processor > --- WEAPON ----------- Katana > --- INVENTORY -------- Flight Unit Flight Unit Seismic Detector Katana [Rating: 12] Favorites ----------- Power Ion Engine Engine Ion Engine Propulsion Flight Unit Wheel Wheel Flight Unit Flight Unit Utility Seismic Detector Device Seismic Detector Storage Small Storage Unit Processor Improved Terrain Scan Processor Weapon Light Cannon Energy Gun Medium Laser Ballistic Gun Assault Rifle Ballistic Cannon Light Cannon Launcher Grenade Launcher Slashing Weapon Katana Build | -11 -10 -10 -10 ------- Run | Yrd Mat Min Sub Slots Evolved . | . . . . Power . | . . . . Propulsion . | . . . . Utility . | . . . . Weapon . | . . . . Parts Attached 29 | 10 3 13 3 Power 3 | 2 . . 1 Engine 3 | 2 . . 1 Core . | . . . . Reactor . | . . . . Propulsion 7 | 3 . 2 2 Treads . | . . . . Leg . | . . . . Wheel 3 | 3 . . . Hover . | . . . . Flight 4 | . . 2 2 Utility 9 | 3 1 5 . Device 6 | 2 . 4 . Storage 2 | 1 1 . . Processor 1 | . . 1 . Hackware . | . . . . Protection . | . . . . Artifact . | . . . . Weapon 10 | 2 2 6 . Energy Gun 1 | 1 . . . Energy Cannon . | . . . . Ballistic Gun 3 | 1 . 2 . Ballistic Cannon 3 | . 2 1 . Launcher 1 | . . 1 . Special Weapon . | . . . . Impact Weapon . | . . . . Slashing Weapon 2 | . . 2 . Piercing Weapon . | . . . . Special Melee Weapon . | . . . . Unidentified Prototypes . | . . . . Parts Lost 7 | . . 2 5 Power 1 | . . . 1 Propulsion 5 | . . 1 4 Utility 1 | . . 1 . Weapon . | . . . . Highest Loss Streak 3 | . . 1 3 To Critical Strikes . | . . . . Average Slot Usage (%) 87 | . 100 85 78 Engine 11 | . 14 14 9 Wheel 10 | . 28 3 . Flight 16 | . . 21 26 Device 18 | . 26 16 14 Storage 1 | . 1 3 . Processor 7 | . . 7 14 Ballistic Cannon 10 | . 26 7 . Slashing Weapon 7 | . . 7 14 Naked Turns . | . . . . Heaviest Build 17 | 15 17 17 8 Greatest Support 26 | 26 20 20 8 Greatest Overweight (x) 1 | . . 1 1 Average Overweight (x) . | . . . . Largest Inventory Capacity 8 | 8 8 8 5 Average Capacity 5 | 7 5 5 5 Most Carried 8 | 2 8 8 5 Average Carried 3 | . 4 5 3 Final Capacity 8 | 5 8 5 5 Final Carried 8 | 2 8 3 3 Class Distribution -------------------- 100% | Mutant Dominant Class ---------------- Mutant | -10/Materials Mutant | -10/Mines Mutant | -10/Subcaves Resources | -11 -10 -10 -10 ----------- Run | Yrd Mat Min Sub Matter Collected 537 | 240 . 169 128 Remotely . | . . . . Salvage Created 187 | 41 . 59 87 Parts 17 | 4 . 10 3 Haulers Intercepted . | . . . . Recyclers Shooed . | . . . . Parts Field Recycled . | . . . . Retrieved Matter . | . . . . Parts Self-Destructed . | . . . . Prevented . | . . . . Kills | -11 -10 -10 -10 ------- Run | Yrd Mat Min Sub Combat Hostiles Destroyed 5 | . . 3 2 Melee 2 | . . . 2 Cannons 3 | . . 3 . Classes Destroyed 4 | 1 . 2 1 Builder 1 | . . 1 . Tunneler 3 | 2 . 1 . Swarmer 3 | . . 3 . Subdweller 2 | . . . 2 Best Kill Streak 3 | 1 . 3 1 Combat Bots Only 3 | . . 3 1 Max Kills in Single Turn 1 | 1 . 1 1 Gunslinging . | . . . . Exploded . | . . . . Melee 1 | . . . 1 Uniques/NPCs Destroyed . | . . . . Combat | -11 -10 -10 -10 -------- Run | Yrd Mat Min Sub Hostile Shots Fired 40 | . . 22 18 Missed 7 | . . 4 3 Damage Taken 567 | . . 250 317 Core 262 | . . 103 159 Absorbed by Shields . | . . . . Core Remaining (%) 100 | 100 . . . Volleys Fired 12 | 2 1 9 . Largest 2 | 2 2 2 . Hottest 70 | 70 70 70 . Shots Fired 22 | 4 2 16 . Gun 4 | 4 . . . Cannon 18 | . 2 16 . Launcher . | . . . . Special . | . . . . Kinetic 20 | 2 2 16 . Thermal 2 | 2 . . . Explosive . | . . . . Electromagnetic . | . . . . Robot Hit Streak 8 | 2 4 8 . Robot Miss Streak 3 | . . 3 . Penetration Max . | . . . . Secondary Targets . | . . . . Shots Hit Robots 28 | 2 2 13 11 Core Hits 8 | 2 . 4 2 Critical Kills . | . . . . Critical Parts Destroyed . | . . . . Critical Strikes 1 | . . . 1 Sever 1 | . . . 1 Melee Attacks 22 | . . 4 18 Impact . | . . . . Slashing 22 | . . 4 18 Piercing . | . . . . Sneak Attacks 3 | . . 3 . Combat Hostiles . | . . . . Follow-up Attacks . | . . . . Damage Inflicted 793 | 25 35 385 348 Guns 25 | 25 . . . Cannons 189 | . 35 154 . Explosions . | . . . . Melee 579 | . . 231 348 Ramming . | . . . . Kinetic 189 | . 35 154 . Thermal 25 | 25 . . . Explosive . | . . . . Electromagnetic . | . . . . Impact . | . . . . Slashing 579 | . . 231 348 Piercing . | . . . . Highest Corruption . | . . . . Average Corruption . | . . . . Corruption Purged . | . . . . Corruption Blocked . | . . . . Overload Shots . | . . . . Overflow Damage 75 | . . 75 . Projectiles . | . . . . Explosions . | . . . . Melee 75 | . . 75 . Knockbacks . | . . . . Impact . | . . . . Kinetic . | . . . . Secondary . | . . . . Self-Inflicted Damage . | . . . . Shots . | . . . . Rammed . | . . . . Targets Rammed . | . . . . Kicked . | . . . . Crushed . | . . . . Highest Temperature 51 | 9 9 51 . Average Temperature 18 | 6 6 22 . Received Heat Transfer . | . . . . Siege Activations . | . . . . Robots Corrupted . | . . . . Combat Hostiles . | . . . . Parts Fried . | . . . . Impact Corruptions . | . . . . Robots Melted . | . . . . Combat Hostiles . | . . . . Parts Melted . | . . . . Heat Transferred 74 | 74 . . . Parts Sabotaged . | . . . . Parts Stolen . | . . . . Parts Stripped . | . . . . Power Chain Reactions . | . . . . Alert | -11 -10 -10 -10 ------- Run | Yrd Mat Min Sub Peak Influence 88 | 10 9 88 . Initial 6 | . 6 3 . Average 27 | 4 7 74 . Maximum Alert Level . | . . . . Low Security (%) 100 | 100 100 100 . Level 1 . | . . . . Level 2 . | . . . . Level 3 . | . . . . Level 4 . | . . . . Level 5 . | . . . . High Security . | . . . . Max Security . | . . . . Squads Dispatched 1 | . . 1 . Investigation 1 | . . 1 . Extermination . | . . . . Reinforcement . | . . . . Assault . | . . . . Garrison . | . . . . Intercept . | . . . . Searches Triggered . | . . . . Construction Impeded . | . . . . Haulers Reinforced . | . . . . Active Scanning Responses . | . . . . Cargo Convoy Interrupts . | . . . . Stealth | -11 -10 -10 -10 --------- Run | Yrd Mat Min Sub Distress Signals . | . . . . Communications Jammed . | . . . . Distress Signals . | . . . . Times Spotted 13 | . 1 6 6 Peak Tracking Total 10 | . . 10 4 Tactical Retreats 2 | . . . 2 Traps | -11 -10 -10 -10 ------- Run | Yrd Mat Min Sub Traps Triggered . | . . . . Indirectly . | . . . . Trap Hack Attempts . | . . . . Triggered . | . . . . Disarmed . | . . . . Reprogrammed . | . . . . Reused . | . . . . Traps Extracted . | . . . . Installed . | . . . . Triggered 1 | . . . 1 Most Traps Carried 1 | . . . 1 Machines | -11 -10 -10 -10 ---------- Run | Yrd Mat Min Sub Machines Disabled 1 | . . 1 . Max in Single Turn 1 | . . 1 . Machines Repaired . | . . . . Machines Dismantled . | . . . . Machines Sabotaged . | . . . . Overloaded Fab Kills . | . . . . Hacking | -11 -10 -10 -10 --------- Run | Yrd Mat Min Sub Machines Accessed 2 | . 1 1 . Terminals 1 | . 1 . . Fabricators . | . . . . Repair Stations . | . . . . Recycling Units . | . . . . Scanalyzers . | . . . . Garrison Access . | . . . . Total Hacks 3 | . 2 1 . Successful 2 | . 1 1 . Failed 1 | . 1 . . Catastrophic . | . . . . Database Lockouts . | . . . . Manual 5 | . 3 2 . Terminals 2 | . 2 . . Fabricators . | . . . . Repair Stations . | . . . . Recycling Units . | . . . . Scanalyzers . | . . . . Garrison Access . | . . . . Terminal Hacks 2 | . 1 1 . Open Door 1 | . . 1 . Maintenance Status 1 | . 1 . . Fabricator Hacks . | . . . . Repair Station Hacks . | . . . . Recycling Unit Hacks . | . . . . Scanalyzer . | . . . . Garrison Access Hacks . | . . . . Unauthorized Hacks . | . . . . Terminals . | . . . . Fabricators . | . . . . Repair Stations . | . . . . Recycling Units . | . . . . Scanalyzers . | . . . . Garrison Access . | . . . . Data Cores Recovered . | . . . . Used . | . . . . Hacking Detections 1 | . 1 . . Full Trace Events 1 | . 1 . . Feedback Events . | . . . . Feedback Blocked . | . . . . Robot Schematics Acquired . | . . . . Robots Built . | . . . . Authchips . | . . . . Time . | . . . . Total Robot Build Rating . | . . . . Part Schematics Acquired . | . . . . Parts Built . | . . . . Authchips . | . . . . Time . | . . . . Total Part Build Rating . | . . . . Parts Repaired . | . . . . Time . | . . . . Parts Recycled . | . . . . Recycled Matter . | . . . . Retrieved Matter . | . . . . Retrieved Components . | . . . . Parts Scanalyzed . | . . . . Part Schematics Acquired . | . . . . Parts Damaged . | . . . . Bothacking | -11 -10 -10 -10 ------------ Run | Yrd Mat Min Sub Used RIF Installer . | . . . . Robots Hacked . | . . . . Non-combat . | . . . . Combat . | . . . . Robot Hacks Applied . | . . . . Relay Couplers Released . | . . . . Fabnet Peak Effective % . | . . . . Robots Rewired . | . . . . Allies Hacked . | . . . . Hacks Repelled . | . . . . Allies | -11 -10 -10 -10 -------- Run | Yrd Mat Min Sub Total Allies . | . . . . Largest Group . | . . . . Highest-Rated Group . | . . . . Highest-Rated Ally . | . . . . Total Orders . | . . . . Ally Attacks . | . . . . Total Damage . | . . . . Kills . | . . . . Allies Corrupted . | . . . . Allies Melted . | . . . . Intel | -11 -10 -10 -10 ------- Run | Yrd Mat Min Sub Robot Analysis Total . | . . . . Derelict Logs Recovered 1 | . . . 1 Drone Launches . | . . . . Drone Recoveries . | . . . . Exploration | -11 -10 -10 -10 ------------- Run | Yrd Mat Min Sub Turns Passed 911 | 155 256 185 315 Spaces Moved 1096 | 92 263 287 454 Core 1 | 1 . . . Treads . | . . . . Legs . | . . . . Wheels 375 | 91 263 21 . Hover . | . . . . Flight 720 | . . 266 454 Fastest Speed 37 | 50 80 37 37 Average Speed 53 | 88 80 41 37 Slowest Speed 120 | 90 80 117 120 Overloaded Moves . | . . . . Propulsion Burnouts . | . . . . Robots Hopped . | . . . . Cave-ins Triggered . | . . . . Exploration Rate (%) 28 | 7 39 34 33 Regions Visited 3 Branch Regions 2 Pre-discovered Areas 1 | . . . 1 Known Exits Taken . | . . . . Unknown Exits Taken 3 | 1 1 1 . Scrap Searched 1 | . . 1 . Spaces Dug . | . . . . Terrain Destroyed . | . . . . Melee . | . . . . Projectile . | . . . . AOE . | . . . . Terrain Rammed . | . . . . Walls Destroyed . | . . . . Machines Disabled . | . . . . Actions | -11 -10 -10 -10 --------- Run | Yrd Mat Min Sub Total 1367 | 158 305 332 572 Wait 182 | 50 31 7 94 Move 1093 | 91 262 286 454 Hop . | . . . . Pick Up 15 | 4 7 1 3 Fast Attach 8 | 5 . 3 . Attach 11 | 2 . 6 3 Detach 5 | . . 5 . Swap 10 | 3 3 4 . Drop 9 | 1 1 7 . Fire 12 | 2 1 9 . Melee 22 | . . 4 18 Ram . | . . . . Kick . | . . . . Crush . | . . . . Escape Stasis . | . . . . Rewire . | . . . . Trap . | . . . . Miscellaneous . | . . . . Route ------- -11/Scrapyard -10/Materials -10/Mines (discovered 2 exits: [*Mat] / [*Sub]) -10/Subcaves History --------- Turn | Location | Event 14 | -11/Scrapyard | Discovered new exit (range 16) 156 | -11/Scrapyard | Entered Materials 317 | -10/Materials | Build established: Mutant 349 | -10/Materials | Discovered new exit (range 15) 412 | -10/Materials | Entered Mines 490 | -10/Mines | Met a Derelict shopkeep closing up shop 575 | -10/Mines | Discovered new exit (range 10) 588 | -10/Mines | Assembled infested the area 593 | -10/Mines | Discovered new exit (range 6) 597 | -10/Mines | Entered Subcaves 600 | -10/Subcaves | Shifting Twisted Machinery released Shrapnel Trap 884 | -10/Subcaves | Core integrity fell below 50% 907 | -10/Subcaves | Core integrity fell below 20% 912 | -10/Subcaves | Destroyed by WJ-N1R(R) with Subdweller Machine Gun Last Messages --------------- Acquired 9 matter. Acquired derelict log, extracted data. World map updated: -10/Materials. Acquired 8 matter. TK-BP7(R): "ECOKILL!" TK-BP7(R) destroyed. Acquired 33 matter. Acquired Sub. Optics. Acquired Sub. Power Source. Subatomizers dissect the Cobbler Unit, destroying it. Acquired 13 matter. Flight Unit destroyed. MZ-Z61(R) destroyed. Acquired 50 matter. Acquired 4 matter. WJ-N1R(R) affixes Scrap Shield Fragment to Scrap Shield. Flight Unit destroyed. WJ-N1R(R) Sub. Monowheel severed. Map ----- +----------------------------------------------------+ | ?????????????????????????????????????????????????? | | ?????????????????????????????????????????????????? | | ?????????????????????????????????????????????????? | | ?????????????????????????????????????????????????? | | ?????????????????????????????????????????????????? | | ?????????????????????????????????????????????????? | | ?????????????????????????????????????????????????? | | ?????????????????????????????????????????????????? | | ????????????????????????????????????????????? ???? | | ????????????????????????????????????????????? ?? | | ????????????????????????????????????????????? #?? | | ????????????????????????????????????????????# #?? | | ???????????????????????????????????????????? #?? | | ??????????????????????????????????????????## #?? | | ?????????????????????????????????????????? #?? | | ?????????????????????????????????????????? #?? | | ??????????????????????????????## "????????# % #?# | | ?????????????????????????????? "??????### ### | | ?????????????????????????????? ????#### % | | ????????????????????????????#? ""??## | | ????????????????????????????# "???# ? | | ???????????????????????###### #???# #?? | | ????????????? ??#?## ""#?# #????# #?## | | ????????????????# # # "" ### ###?## #?# | | ?????????????????# " " ## # ## & ### | | ?????????????????# "" @ # # =&## | | ?????????????????# ""# ##R ## | | ????????????????????# ??### ### # | | ????????????????????#?????# ## ## ## ### # | | ??????????????????????????# ### #####?## ## | | ??????????????????????????# # #??????# # # | | ??????????????????????????# #??????# | | ??????????????????????????# ## #??????# | | ??????????????????????????####### ### #??????# ## | | ????????????????????????????????###?# #??????####? | | ????????????????????????????????????###??????????? | | ?????????????????????????????????????????????????? | | ?????????????????????????????????????????????????? | | ?????????????????????????????????????????????????? | | ?????????????????????????????????????????????????? | | ?????????????????????????????????????????????????? | | ?????????????????????????????????????????????????? | | ?????????????????????????????????????????????????? | | ?????????????????????????????????????????????????? | | ?????????????????????????????????????????????????? | | ?????????????????????????????????????????????????? | | ?????????????????????????????????????????????????? | | ?????????????????????????????????????????????????? | | ?????????????????????????????????????????????????? | | ?????????????????????????????????????????????????? | +----------------------------------------------------+ Best States ------------- Heat Dissipation 25 Energy Generation 15 Energy Capacity 250 Matter Stores 300 Matter Capacity 300 Sight Range 16 Terrain Scan Range 16 Terrain Scan Density 110 Evasion (%) 62 Item Schematics ----------------- None Robot Schematics ------------------ None Fabricated ------------ Nothing Alien Tech Used ----------------- None Achievements -------------- I Survived The Infestation Omniscient Cartographer Challenges ------------ None Game ------ Seed FieldPoweredDerivative Manual? 0 Play Time 00:24:06 Cumulative 6.0 hours Start 2024.04.10 @ 22:58:27 End 2024.04.10 @ 23:20:20 Sessions 1 Manual Loads 0 Difficulty Rogue Special Mode None Game No. 7 Rogue 7 Adventurer 0 Explorer 0 Win Type - Total 0 Types 0/0/0/0/0/0/0/0/0 Lore% 2 Gallery% 11 Achievement% 12 Wizard Run 0 Options --------- Layout 1 ASCII 0 Keyboard 0 Movement Arrows Keybinds 0 Fullscreen 1 Font 24/Smallcaps Map View 50x35 Zoom Use 0% Tactical HUD 0 Map Filters NONE Filters NONE Steam 1 RUN: 25b515e1-bf32-4afd-a6e2-0ea1e4ba8151